[Event "NJSK 2024 C"]
[Site "Groningen, Netherlands"]
[Date "2024.05.03"]
[Round "9.9"]
[White "Leenen, Boyd"]
[Black "Ngangbam, Chingthang"]
[Result "1-0"]
[TimeControl "90min/40moves + 30min + 30sec/move"]
[WhiteElo "1920"]
[BlackElo "1713"]

1. e4 {[%clk 01:30:58]} {[%emt 00:00:02]} c5 {[%clk 01:30:47]} {[%emt
00:00:13]} 2. Nf3 {[%clk 01:31:24]} {[%emt 00:00:03]} d6 {[%clk 01:31:05]}
{[%emt 00:00:12]} 3. d4 {[%clk 01:31:50]} {[%emt 00:00:05]} cxd4 {[%clk
01:31:30]} {[%emt 00:00:05]} 4. Nxd4 {[%clk 01:32:16]} {[%emt 00:00:04]} Nf6
{[%clk 01:31:54]} {[%emt 00:00:06]} 5. Nc3 {[%clk 01:32:42]} {[%emt 00:00:04]}
g6 {[%clk 01:32:12]} {[%emt 00:00:13]} 6. Be3 {[%clk 01:32:51]} {[%emt
00:00:21]} Bg7 {[%clk 01:32:34]} {[%emt 00:00:07]} 7. f3 {[%clk 01:33:09]}
{[%emt 00:00:12]} O-O {[%clk 01:32:54]} {[%emt 00:00:10]} 8. Qd2 {[%clk
01:33:37]} {[%emt 00:00:02]} Nc6 {[%clk 01:33:07]} {[%emt 00:00:17]} 9. g4
{[%clk 01:34:00]} {[%emt 00:00:07]} Bxg4 {[%clk 01:25:10]} {[%emt 00:08:27]} 10.
fxg4 {[%clk 01:32:46]} {[%emt 00:01:45]} Nxg4 {[%clk 01:25:32]} {[%emt
00:00:06]} 11. Nxc6 {[%clk 01:25:57]} {[%emt 00:07:20]} bxc6 {[%clk 01:25:56]}
{[%emt 00:00:06]} 12. Bc4 {[%clk 01:20:52]} {[%emt 00:05:35]} Nxe3 {[%clk
01:22:25]} {[%emt 00:04:01]} 13. Qxe3 {[%clk 01:21:02]} {[%emt 00:00:20]} Qa5
{[%clk 01:20:26]} {[%emt 00:02:29]} 14. O-O-O {[%clk 01:20:27]} {[%emt
00:01:06]} Rab8 {[%clk 01:19:44]} {[%emt 00:01:12]} 15. Bb3 {[%clk 01:20:08]}
{[%emt 00:00:47]} Qe5 {[%clk 00:57:39]} {[%emt 00:22:36]} 16. Qxa7 {[%clk
01:09:36]} {[%emt 00:11:02]} c5 {[%clk 00:46:55]} {[%emt 00:11:14]} 17. Qa6
{[%clk 01:09:18]} {[%emt 00:00:49]} Rfc8 {[%clk 00:39:22]} {[%emt 00:08:02]} 18.
Qc4 {[%clk 01:09:36]} {[%emt 00:00:12]} e6 {[%clk 00:38:31]} {[%emt 00:01:21]}
19. a3 {[%clk 01:09:16]} {[%emt 00:00:50]} Rc7 {[%clk 00:33:24]} {[%emt
00:05:37]} 20. Kb1 {[%clk 01:08:47]} {[%emt 00:00:59]} Rcb7 {[%clk 00:30:13]}
{[%emt 00:03:41]} 21. Ka2 {[%clk 01:08:19]} {[%emt 00:00:58]} Ra7 {[%clk
00:28:57]} {[%emt 00:01:46]} 22. Rd2 {[%clk 01:06:54]} {[%emt 00:01:55]} Bh6
{[%clk 00:23:28]} {[%emt 00:05:59]} 23. Rdd1 {[%emt 00:01:31]} Bg7 {[%clk
00:23:32]} 24. Kb1 {[%clk 01:06:10]} {[%emt 00:00:39]} Rc7 {[%clk 00:21:15]}
{[%emt 00:02:47]} 25. Rd3 {[%clk 01:05:50]} {[%emt 00:00:50]} Rb6 {[%clk
00:20:54]} {[%emt 00:00:51]} 26. h3 {[%clk 01:05:19]} {[%emt 00:01:01]} Ra7
{[%clk 00:20:44]} {[%emt 00:00:40]} 27. Rhd1 {[%clk 01:05:15]} {[%emt
00:00:34]} Bf6 {[%clk 00:20:18]} {[%emt 00:00:55]} 28. Rf3 {[%clk 01:02:18]}
{[%emt 00:03:27]} Bg7 {[%clk 00:19:47]} {[%emt 00:01:01]} 29. Rdf1 {[%clk
01:02:00]} {[%emt 00:00:49]} h5 {[%clk 00:18:14]} {[%emt 00:02:03]} 30. Nd1
{[%clk 01:00:29]} {[%emt 00:02:01]} Rbb7 {[%clk 00:05:24]} {[%emt 00:13:20]} 31.
c3 {[%clk 01:00:16]} {[%emt 00:00:43]} Bh6 {[%clk 00:02:42]} {[%emt 00:03:12]}
32. Nf2 {[%clk 00:59:12]} {[%emt 00:01:33]} Rb6 {[%clk 00:01:43]} {[%emt
00:01:30]} 33. Nd3 {[%clk 00:59:25]} {[%emt 00:00:17]} Qg5 {[%clk 00:01:39]}
{[%emt 00:00:33]} 34. a4 {[%clk 00:49:07]} {[%emt 00:10:49]} Rab7 {[%clk
00:01:18]} {[%emt 00:00:51]} 35. a5 {[%clk 00:49:17]} {[%emt 00:00:20]} Rxb3
{[%clk 00:00:45]} {[%emt 00:01:03]} 36. a6 {[%clk 00:49:42]} {[%emt 00:00:06]}
R7b6 {[%clk 00:00:36]} {[%emt 00:00:38]} 37. Rxf7 {[%clk 00:48:29]} {[%emt
00:01:43]} Qd2 {[%clk 00:00:40]} {[%emt 00:00:26]} 38. R7f2 {[%clk 00:47:01]}
{[%emt 00:01:58]} Qxc3 {[%clk 00:00:37]} {[%emt 00:00:33]} 39. Qxe6+ {[%clk
00:32:06]} {[%emt 00:15:25]} Kh7 {[%clk 00:00:58]} {[%emt 00:00:09]} 40. Rf7+
{[%clk 00:31:44]} {[%emt 00:00:52]} Bg7 {[%clk 00:01:17]} {[%emt 00:00:11]} 41.
Rxg7+ {[%clk 00:32:08]} {[%emt 00:00:06]} Kxg7 {[%clk 00:01:15]} {[%emt
00:00:32]} 42. Qf7+ {[%clk 00:32:32]} {[%emt 00:00:07]} Kh6 {[%clk 00:01:13]}
{[%emt 00:00:31]} 43. Qf8+ {[%clk 00:32:58]} {[%emt 00:00:05]} Qg7 {[%clk
00:01:24]} {[%emt 00:00:19]} 44. a7 {[%clk 00:33:21]} {[%emt 00:00:06]} Qxf8
{[%clk 00:00:50]} {[%emt 00:01:04]} 45. Rxf8 {[%clk 00:33:40]} {[%emt
00:00:12]} Ra6 {[%clk 00:00:56]} {[%emt 00:00:23]} 46. Nc1 {[%clk 00:33:49]}
{[%emt 00:00:21]} Rxh3 {[%clk 00:00:35]} {[%emt 00:00:50]} 47. a8=Q {[%clk
00:34:12]} {[%emt 00:00:08]} Rxa8 {[%clk 00:01:02]} {[%emt 00:00:03]} 48. Rxa8
{[%clk 00:34:36]} {[%emt 00:00:07]} Re3 {[%clk 00:00:51]} {[%emt 00:00:41]} 49.
Rd8 {[%clk 00:34:49]} {[%emt 00:00:17]} Rxe4 {[%clk 00:00:51]} {[%emt
00:00:29]} 50. Rxd6 {[%clk 00:35:11]} {[%emt 00:00:08]} h4 {[%clk 00:01:07]}
{[%emt 00:00:14]} 51. Rd1 {[%clk 00:33:49]} {[%emt 00:01:52]} h3 {[%clk
00:01:11]} {[%emt 00:00:26]} 52. Nd3 {[%clk 00:32:59]} {[%emt 00:01:20]} Rd4
{[%clk 00:00:52]} {[%emt 00:00:50]} 53. Kc2 {[%clk 00:33:10]} {[%emt 00:00:19]}
g5 {[%clk 00:00:41]} {[%emt 00:00:40]} 54. Nf2 {[%clk 00:32:49]} {[%emt
00:00:51]} Rh4 {[%clk 00:00:50]} {[%emt 00:00:21]} 55. Rh1 {[%clk 00:33:04]}
{[%emt 00:00:14]} g4 {[%clk 00:00:42]} {[%emt 00:00:39]} 56. Nxg4+ {[%clk
00:33:25]} {[%emt 00:00:09]} Rxg4 {[%clk 00:01:06]} {[%emt 00:00:06]} 57. Rxh3+
{[%clk 00:33:51]} {[%emt 00:00:03]} Kg5 {[%clk 00:01:00]} {[%emt 00:00:36]} 58.
Rd3 {[%clk 00:33:51]} {[%emt 00:00:30]} c4 {[%clk 00:00:35]} {[%emt 00:00:56]}
59. Rd5+ {[%clk 00:34:10]} {[%emt 00:00:11]} Kf6 {[%clk 00:00:59]} {[%emt
00:00:06]} 60. Kc3 {[%clk 00:34:27]} {[%emt 00:00:14]} Ke6 {[%clk 00:01:18]}
{[%emt 00:00:09]} 61. Rd4 {[%clk 00:34:52]} {[%emt 00:00:06]} Rg2 {[%clk
00:00:50]} {[%emt 00:00:58]} 62. Rxc4 {[%clk 00:34:56]} {[%emt 00:00:26]} Kd7
{[%clk 00:00:54]} {[%emt 00:00:26]} 63. b3 {[%clk 00:35:14]} {[%emt 00:00:12]}
Rg1 {[%clk 00:01:05]} {[%emt 00:00:19]} 64. Kb4 {[%clk 00:35:33]} {[%emt
00:00:11]} Rg5 {[%clk 00:00:41]} {[%emt 00:00:55]} 65. Rc1 {[%clk 00:35:39]}
{[%emt 00:00:24]} Kd6 {[%clk 00:00:39]} {[%emt 00:00:33]} 66. Ka4 {[%clk
00:35:56]} {[%emt 00:00:12]} Rc5 {[%clk 00:00:47]} {[%emt 00:00:21]} 67. Rxc5
{[%clk 00:36:12]} {[%emt 00:00:15]} Kxc5 {[%clk 00:01:10]} {[%emt 00:00:07]} 68.
Ka5 {[%clk 00:36:37]} {[%emt 00:00:06]} Kc6 {[%clk 00:01:22]} {[%emt 00:00:18]}
69. b4 {[%clk 00:36:52]} {[%emt 00:00:14]} Kb7 {[%clk 00:01:30]} {[%emt
00:00:22]} 70. Kb5 {[%clk 00:37:19]} {[%emt 00:00:04]} Ka7 {[%clk 00:00:48]}
{[%emt 00:01:12]} 71. Kc6 {[%clk 00:37:44]} {[%emt 00:00:05]} Kb8 {[%clk
00:01:06]} {[%emt 00:00:11]} 72. Kb6 {[%clk 00:36:59]} {[%emt 00:01:15]} Ka8
{[%clk 00:01:21]} {[%emt 00:00:15]} 73. Ka6 {[%clk 00:37:20]} {[%emt 00:00:10]}
Kb8 {[%clk 00:01:46]} {[%emt 00:00:04]} 74. b5 {[%clk 00:37:39]} {[%emt
00:00:11]} Ka8 {[%clk 00:01:52]} {[%emt 00:00:23]} 75. b6 {[%clk 00:38:04]}
{[%emt 00:00:06]} Kb8 {[%clk 00:01:56]} {[%emt 00:00:26]} 76. b7 {[%clk
00:38:30]} {[%emt 00:00:04]} Kc7 {[%clk 00:02:20]} {[%emt 00:00:06]} 77. Ka7
{[%clk 00:38:55]} {[%emt 00:00:05]} 1-0

[Event "NJSK 2024 C"]
[Site "Groningen, Netherlands"]
[Date "2024.05.03"]
[Round "9.10"]
[White "Koppenens, Oscar"]
[Black "Lalkota, Sai Pranav Tejas"]
[Result "1/2-1/2"]
[TimeControl "90min/40moves + 30min + 30sec/move"]
[WhiteElo "1893"]
[BlackElo "1782"]

1. e4 {[%clk 01:30:56]} {[%emt 00:00:02]} e6 {[%clk 01:30:54]} {[%emt
00:00:06]} 2. d4 {[%clk 01:31:21]} {[%emt 00:00:05]} d5 {[%clk 01:31:20]}
{[%emt 00:00:04]} 3. Bd3 {[%clk 01:31:44]} {[%emt 00:00:07]} dxe4 {[%clk
01:31:44]} {[%emt 00:00:06]} 4. Bxe4 {[%clk 01:32:10]} {[%emt 00:00:04]} Nf6
{[%clk 01:32:07]} {[%emt 00:00:07]} 5. Bf3 {[%clk 01:32:38]} {[%emt 00:00:02]}
Bd6 {[%clk 01:32:28]} {[%emt 00:00:10]} 6. Ne2 {[%clk 01:32:56]} {[%emt
00:00:11]} Nc6 {[%clk 01:32:48]} {[%emt 00:00:10]} 7. c4 {[%clk 01:33:08]}
{[%emt 00:00:18]} Bd7 {[%clk 01:33:01]} {[%emt 00:00:16]} 8. Nbc3 {[%clk
01:33:19]} {[%emt 00:00:20]} O-O {[%clk 01:33:20]} {[%emt 00:00:11]} 9. O-O
{[%clk 01:33:34]} {[%emt 00:00:14]} Re8 {[%clk 01:32:22]} {[%emt 00:01:29]} 10.
Bg5 {[%clk 01:32:55]} {[%emt 00:01:08]} h6 {[%clk 01:32:28]} {[%emt 00:00:24]}
11. Bh4 {[%clk 01:32:48]} {[%emt 00:00:37]} Rc8 {[%clk 01:30:10]} {[%emt
00:02:49]} 12. a3 {[%clk 01:31:21]} {[%emt 00:01:57]} a5 {[%clk 01:30:34]}
{[%emt 00:00:06]} 13. Qb3 {[%clk 01:26:40]} {[%emt 00:05:10]} e5 {[%clk
01:24:41]} {[%emt 00:06:24]} 14. d5 {[%clk 01:26:12]} {[%emt 00:00:57]} Nd4
{[%clk 01:22:09]} {[%emt 00:03:02]} 15. Nxd4 {[%clk 01:25:54]} {[%emt
00:00:49]} exd4 {[%clk 01:22:31]} {[%emt 00:00:08]} 16. Ne2 {[%clk 01:24:00]}
{[%emt 00:02:23]} Bxh2+ {[%clk 01:21:01]} {[%emt 00:02:01]} 17. Kxh2 {[%clk
01:21:10]} {[%emt 00:03:19]} Ng4+ {[%clk 01:21:24]} {[%emt 00:00:07]} 18. Bxg4
{[%clk 01:20:02]} {[%emt 00:01:38]} Qxh4+ {[%clk 01:21:47]} {[%emt 00:00:07]}
19. Qh3 {[%clk 01:18:19]} {[%emt 00:02:12]} Qxh3+ {[%clk 01:22:08]} {[%emt
00:00:10]} 20. gxh3 {[%clk 01:18:29]} {[%emt 00:00:20]} Bxg4 {[%clk 01:22:32]}
{[%emt 00:00:06]} 21. Nxd4 {[%emt 00:01:33]} Be2 {[%clk 01:21:37]} 22. Rfc1
{[%clk 01:14:31]} {[%emt 00:04:50]} Re4 {[%clk 01:19:22]} {[%emt 00:02:45]} 23.
Nf5 {[%clk 01:14:50]} {[%emt 00:00:10]} Rce8 {[%clk 01:18:05]} {[%emt
00:01:49]} 24. Ne3 {[%clk 01:14:52]} {[%emt 00:00:28]} f5 {[%clk 01:16:51]}
{[%emt 00:01:44]} 25. Rc2 {[%clk 01:11:52]} {[%emt 00:03:30]} f4 {[%clk
01:15:53]} {[%emt 00:01:28]} 26. Rxe2 {[%clk 01:11:53]} {[%emt 00:00:28]} fxe3
{[%clk 01:16:16]} {[%emt 00:00:08]} 27. Rxe3 {[%clk 01:11:59]} {[%emt
00:00:24]} Rxe3 {[%clk 01:16:39]} {[%emt 00:00:07]} 28. fxe3 {[%clk 01:12:24]}
{[%emt 00:00:05]} Rxe3 {[%clk 01:17:08]} {[%emt 00:00:01]} 29. b4 {[%clk
01:12:16]} {[%emt 00:00:38]} Re2+ {[%clk 01:12:58]} {[%emt 00:04:39]} 1/2-1/2

[Event "NJSK 2024 C"]
[Site "Groningen, Netherlands"]
[Date "2024.05.03"]
[Round "9.11"]
[White "Frederiks, Jesse"]
[Black "Etienne, Ghilon"]
[Result "1/2-1/2"]
[TimeControl "90min/40moves + 30min + 30sec/move"]
[WhiteElo "1718"]
[BlackElo "1793"]

1. f4 {[%clk 01:30:54]} {[%emt 00:00:06]} Nc6 {[%clk 01:30:55]} {[%emt
00:00:06]} 2. Nf3 {[%clk 01:31:11]} {[%emt 00:00:13]} d5 {[%clk 01:31:21]}
{[%emt 00:00:05]} 3. e3 {[%clk 01:31:20]} {[%emt 00:00:20]} Nf6 {[%clk
01:31:34]} {[%emt 00:00:17]} 4. Be2 {[%clk 01:31:22]} {[%emt 00:00:28]} Bf5
{[%clk 01:28:53]} {[%emt 00:03:11]} 5. d3 {[%clk 01:30:59]} {[%emt 00:00:53]}
e6 {[%clk 01:28:51]} {[%emt 00:00:33]} 6. O-O {[%clk 01:28:33]} {[%emt
00:02:55]} Bd6 {[%clk 01:29:16]} {[%emt 00:00:05]} 7. b3 {[%clk 01:20:08]} h6
{[%clk 01:26:15]} {[%emt 00:12:25]} 8. Bb2 {[%clk 01:13:08]} Qe7 {[%clk
01:19:50]} {[%emt 00:14:25]} 9. Ne5 {[%clk 01:11:06]} Bxe5 {[%clk 01:20:09]}
{[%emt 00:02:44]} 10. fxe5 {[%emt 00:00:40]} Nd7 11. d4 {[%clk 01:11:31]} Bg6
{[%clk 01:07:27]} {[%emt 00:13:37]} 12. Nc3 {[%clk 01:05:54]} {[%emt 00:06:07]}
O-O-O {[%clk 01:00:42]} {[%emt 00:07:14]} 13. a4 {[%clk 01:00:11]} {[%emt
00:06:14]} h5 {[%clk 00:58:49]} {[%emt 00:02:23]} 14. a5 {[%clk 00:59:43]}
{[%emt 00:00:58]} h4 {[%clk 00:56:22]} {[%emt 00:02:58]} 15. a6 {[%clk
00:57:59]} {[%emt 00:02:13]} b6 {[%clk 00:56:26]} {[%emt 00:00:26]} 16. Bb5
{[%clk 00:57:20]} {[%emt 00:01:09]} Ncb8 {[%clk 00:56:40]} {[%emt 00:00:16]} 17.
Bxd7+ {[%clk 00:55:38]} {[%emt 00:02:12]} Rxd7 {[%clk 00:56:51]} {[%emt
00:00:20]} 18. Nb5 {[%clk 00:55:36]} {[%emt 00:00:31]} Nc6 {[%clk 00:57:11]}
{[%emt 00:00:10]} 19. Qd2 {[%clk 00:52:26]} {[%emt 00:03:40]} Kb8 {[%clk
00:55:43]} {[%emt 00:01:58]} 20. h3 {[%clk 00:50:35]} {[%emt 00:02:20]} Bf5
{[%clk 00:51:01]} {[%emt 00:05:12]} 21. Qc3 {[%clk 00:47:54]} {[%emt 00:03:11]}
Nd8 {[%clk 00:50:18]} {[%emt 00:01:14]} 22. Ba3 {[%clk 00:47:45]} {[%emt
00:00:40]} Qe8 {[%clk 00:47:31]} {[%emt 00:03:17]} 23. Rf2 {[%clk 00:41:31]}
{[%emt 00:06:43]} f6 {[%clk 00:39:55]} {[%emt 00:08:06]} 24. exf6 {[%clk
00:40:25]} {[%emt 00:01:37]} gxf6 {[%clk 00:40:23]} {[%emt 00:00:02]} 25. Nxc7
{[%clk 00:31:58]} {[%emt 00:08:56]} Rxc7 {[%clk 00:40:39]} {[%emt 00:00:13]} 26.
Bd6 {[%clk 00:32:23]} {[%emt 00:00:05]} 1/2-1/2

[Event "NJSK 2024 C"]
[Site "Groningen, Netherlands"]
[Date "2024.05.03"]
[Round "9.12"]
[White "Kors, Siebe"]
[Black "De Wit, Evan"]
[Result "1/2-1/2"]
[TimeControl "90min/40moves + 30min + 30sec/move"]
[WhiteElo "1668"]
[BlackElo "1769"]

1. e4 {[%emt 00:00:02]} c5 2. Nf3 {[%clk 01:30:41]} {[%emt 00:00:16]} Nc6
{[%clk 01:30:56]} {[%emt 00:00:05]} 3. d4 {[%clk 01:31:06]} {[%emt 00:00:05]}
cxd4 {[%clk 01:31:22]} {[%emt 00:00:05]} 4. Nxd4 {[%clk 01:31:31]} {[%emt
00:00:04]} Nf6 {[%clk 01:31:46]} {[%emt 00:00:05]} 5. Nc3 {[%clk 01:31:43]}
{[%emt 00:00:18]} e5 {[%clk 01:32:10]} {[%emt 00:00:06]} 6. Ndb5 {[%clk
01:31:57]} {[%emt 00:00:16]} d6 {[%clk 01:32:34]} {[%emt 00:00:07]} 7. Nd5
{[%clk 01:32:17]} {[%emt 00:00:09]} Nxd5 {[%clk 01:32:57]} {[%emt 00:00:08]} 8.
exd5 {[%clk 01:32:36]} {[%emt 00:00:11]} Nb8 {[%clk 01:33:15]} {[%emt
00:00:12]} 9. c4 {[%clk 01:32:32]} {[%emt 00:00:34]} Be7 {[%clk 01:33:39]}
{[%emt 00:00:05]} 10. Bd3 {[%clk 01:32:24]} {[%emt 00:00:39]} O-O {[%clk
01:34:00]} {[%emt 00:00:07]} 11. Be3 {[%clk 01:32:41]} {[%emt 00:00:15]} a6
{[%clk 01:33:54]} {[%emt 00:00:37]} 12. Nc3 {[%clk 01:33:02]} {[%emt 00:00:07]}
f5 {[%clk 01:34:17]} {[%emt 00:00:07]} 13. f3 {[%clk 01:33:04]} {[%emt
00:00:28]} Bh4+ {[%clk 01:34:04]} {[%emt 00:00:43]} 14. g3 {[%clk 01:31:54]}
{[%emt 00:01:41]} f4 {[%clk 01:33:56]} {[%emt 00:00:38]} 15. Bf2 {[%clk
01:31:42]} {[%emt 00:00:41]} Bg5 {[%clk 01:33:54]} {[%emt 00:00:33]} 16. Qc2
{[%clk 01:29:48]} {[%emt 00:02:24]} h6 {[%clk 01:33:56]} {[%emt 00:00:27]} 17.
h4 {[%clk 01:29:25]} {[%emt 00:00:53]} fxg3 {[%clk 01:33:29]} {[%emt 00:00:58]}
18. Bxg3 {[%clk 01:29:22]} {[%emt 00:00:32]} Be3 {[%clk 01:32:31]} {[%emt
00:01:28]} 19. Qe2 {[%clk 01:28:46]} {[%emt 00:01:06]} Bd4 {[%clk 01:32:10]}
{[%emt 00:00:51]} 20. Bf2 {[%clk 01:27:08]} {[%emt 00:02:08]} Bg4 {[%clk
01:26:46]} {[%emt 00:05:54]} 21. Be4 {[%clk 01:25:23]} {[%emt 00:02:15]} Qf6
{[%clk 01:20:11]} {[%emt 00:07:05]} 22. Bxd4 {[%clk 01:17:58]} {[%emt
00:07:55]} exd4 {[%clk 01:20:34]} {[%emt 00:00:08]} 23. fxg4 {[%clk 01:17:49]}
{[%emt 00:00:38]} dxc3 {[%clk 01:20:54]} {[%emt 00:00:11]} 24. Rc1 {[%clk
01:14:58]} {[%emt 00:03:21]} cxb2 {[%clk 01:20:55]} {[%emt 00:00:28]} 25. Rb1
{[%clk 01:14:08]} {[%emt 00:01:20]} Qc3+ {[%clk 01:21:05]} {[%emt 00:00:21]} 26.
Qd2 {[%clk 01:14:19]} {[%emt 00:00:19]} Qg3+ {[%clk 01:21:18]} {[%emt
00:00:16]} 27. Kd1 {[%clk 01:13:49]} {[%emt 00:00:53]} Qxg4+ {[%clk 01:21:36]}
{[%emt 00:00:19]} 28. Qe2 {[%clk 01:13:51]} {[%emt 00:00:28]} Qxe2+ {[%clk
01:21:25]} {[%emt 00:00:41]} 29. Kxe2 {[%clk 01:14:13]} {[%emt 00:00:08]} Nd7
{[%clk 01:21:45]} {[%emt 00:00:11]} 30. Bd3 {[%clk 01:11:23]} {[%emt 00:03:20]}
Nc5 {[%clk 01:21:59]} {[%emt 00:00:16]} 31. Bc2 {[%clk 01:05:34]} {[%emt
00:06:18]} Rae8+ {[%clk 01:22:01]} {[%emt 00:00:28]} 32. Kd1 {[%clk 01:05:28]}
{[%emt 00:00:36]} Rf2 {[%clk 01:20:09]} {[%emt 00:02:20]} 33. Rxb2 {[%clk
01:03:32]} {[%emt 00:02:28]} Ree2 {[%clk 01:20:31]} {[%emt 00:00:08]} 34. Bh7+
{[%clk 01:03:25]} {[%emt 00:00:38]} Kxh7 {[%clk 01:20:16]} {[%emt 00:00:45]} 35.
Rxe2 {[%clk 01:03:26]} {[%emt 00:00:29]} Rf4 {[%clk 01:16:37]} {[%emt
00:04:09]} 36. Re7 {[%clk 01:02:47]} {[%emt 00:01:08]} Rg4 {[%clk 01:14:59]}
{[%emt 00:02:09]} 37. Ke2 {[%clk 00:56:51]} {[%emt 00:06:25]} Rxc4 {[%clk
01:11:19]} {[%emt 00:04:11]} 38. Rg1 {[%clk 00:52:46]} {[%emt 00:04:33]} Re4+
{[%clk 01:11:41]} {[%emt 00:00:10]} 39. Rxe4 {[%clk 00:53:05]} {[%emt
00:00:11]} Nxe4 {[%clk 01:12:04]} {[%emt 00:00:07]} 40. Rc1 {[%clk 00:52:20]}
{[%emt 00:01:06]} Kg6 {[%clk 01:11:50]} {[%emt 00:00:52]} 41. Rc7 {[%clk
00:51:49]} {[%emt 00:01:02]} Nc5 {[%clk 01:12:03]} {[%emt 00:00:17]} 42. Rc8
{[%clk 00:50:53]} {[%emt 00:01:26]} Kf6 {[%clk 01:12:03]} {[%emt 00:00:30]} 43.
Ke3 {[%clk 00:49:57]} {[%emt 00:01:25]} g5 {[%clk 01:10:54]} {[%emt 00:01:39]}
44. Kf3 {[%clk 00:47:09]} {[%emt 00:03:18]} gxh4 {[%clk 01:11:05]} {[%emt
00:00:18]} 45. Rh8 {[%clk 00:46:52]} {[%emt 00:00:47]} Ke5 {[%clk 01:11:16]}
{[%emt 00:00:21]} 46. Rxh6 {[%clk 00:46:46]} Kxd5 {[%clk 01:11:40]} {[%emt
00:00:42]} 47. Rxh4 {[%clk 00:46:36]} {[%emt 00:00:39]} b5 {[%clk 01:11:32]}
{[%emt 00:00:38]} 48. Rb4 {[%clk 00:40:45]} {[%emt 00:06:20]} Nd3 {[%clk
01:10:50]} {[%emt 00:01:13]} 49. Rb3 {[%clk 00:40:11]} {[%emt 00:01:04]} Kc4
{[%clk 01:07:54]} {[%emt 00:03:25]} 50. Ra3 {[%clk 00:37:05]} {[%emt 00:03:38]}
Nc5 {[%clk 01:08:01]} {[%emt 00:00:22]} 51. Ke2 {[%clk 00:34:49]} {[%emt
00:02:45]} d5 {[%clk 01:07:14]} {[%emt 00:01:19]} 52. Kd2 {[%clk 00:33:55]}
{[%emt 00:01:24]} d4 {[%clk 01:07:24]} {[%emt 00:00:20]} 53. Rf3 {[%clk
00:33:05]} {[%emt 00:01:02]} a5 {[%clk 01:07:21]} {[%emt 00:00:50]} 54. Rf8
{[%clk 00:31:15]} {[%emt 00:02:20]} Ne4+ {[%clk 01:04:24]} {[%emt 00:03:28]} 55.
Kc2 {[%clk 00:30:45]} {[%emt 00:01:00]} d3+ {[%clk 01:04:11]} {[%emt 00:00:44]}
56. Kd1 {[%clk 00:30:26]} {[%emt 00:00:48]} Nc3+ {[%clk 00:54:03]} {[%emt
00:10:39]} 57. Kd2 {[%clk 00:30:27]} {[%emt 00:00:29]} Nxa2 {[%clk 00:52:40]}
{[%emt 00:01:52]} 58. Rf4+ {[%clk 00:30:17]} {[%emt 00:00:40]} Kb3 {[%clk
00:52:46]} {[%emt 00:00:21]} 59. Kxd3 {[%clk 00:30:30]} {[%emt 00:00:20]} Nb4
{[%clk 00:52:20]} {[%emt 00:00:56]} 60. Kd2 {[%clk 00:29:44]} {[%emt 00:01:15]}
a4 {[%clk 00:51:36]} {[%emt 00:01:15]} 61. Rf5 {[%clk 00:28:48]} {[%emt
00:01:25]} Kc4 {[%clk 00:48:37]} {[%emt 00:03:31]} 62. Rf4+ {[%clk 00:28:51]}
{[%emt 00:00:27]} Kc5 {[%clk 00:48:33]} {[%emt 00:00:34]} 63. Rf5+ {[%clk
00:28:34]} {[%emt 00:00:46]} Nd5 {[%clk 00:46:42]} {[%emt 00:02:22]} 64. Kc2
{[%clk 00:27:36]} {[%emt 00:01:28]} Kc4 {[%clk 00:45:21]} {[%emt 00:01:50]} 65.
Kb2 {[%clk 00:26:33]} {[%emt 00:01:34]} b4 {[%clk 00:45:09]} {[%emt 00:00:41]}
66. Rf3 {[%clk 00:24:54]} {[%emt 00:02:00]} Nc7 {[%clk 00:31:37]} {[%emt
00:14:11]} 67. Rf4+ {[%clk 00:25:00]} {[%emt 00:00:23]} Kc5 {[%clk 00:30:29]}
{[%emt 00:01:39]} 68. Rf5+ {[%clk 00:24:55]} {[%emt 00:00:35]} Nd5 {[%clk
00:28:32]} {[%emt 00:02:28]} 69. Rf3 {[%clk 00:24:43]} {[%emt 00:00:41]} Kc4
{[%clk 00:26:43]} {[%emt 00:02:18]} 70. Rh3 {[%clk 00:23:53]} {[%emt 00:01:20]}
Nc7 {[%clk 00:22:18]} {[%emt 00:04:53]} 71. Rh4+ {[%clk 00:23:49]} {[%emt
00:00:37]} Kc5 {[%clk 00:21:12]} {[%emt 00:01:36]} 72. Rh5+ {[%clk 00:23:48]}
{[%emt 00:00:31]} Kb6 {[%clk 00:20:51]} {[%emt 00:00:45]} 73. Rh6+ {[%clk
00:20:23]} {[%emt 00:04:01]} Kb7 {[%clk 00:20:50]} {[%emt 00:00:32]} 74. Rh5
{[%clk 00:20:12]} {[%emt 00:00:39]} Kb6 {[%clk 00:18:23]} {[%emt 00:02:58]} 75.
Rh6+ {[%clk 00:19:39]} {[%emt 00:01:04]} Ka5 {[%clk 00:17:59]} {[%emt
00:00:52]} 76. Rh5+ {[%clk 00:19:21]} {[%emt 00:00:49]} Nb5 {[%clk 00:18:23]}
{[%emt 00:00:06]} 77. Rg5 {[%clk 00:19:21]} {[%emt 00:00:31]} Kb6 {[%clk
00:18:28]} {[%emt 00:00:24]} 78. Rg4 {[%clk 00:19:05]} {[%emt 00:00:44]} Kc5
{[%clk 00:18:44]} {[%emt 00:00:15]} 79. Rg5+ {[%clk 00:19:01]} {[%emt
00:00:35]} Kc4 {[%clk 00:18:53]} {[%emt 00:00:21]} 80. Rg4+ {[%clk 00:19:10]}
{[%emt 00:00:21]} Nd4 {[%clk 00:19:12]} {[%emt 00:00:11]} 81. Rg3 {[%clk
00:18:57]} {[%emt 00:00:42]} b3 {[%clk 00:16:32]} {[%emt 00:03:11]} 82. Ka3
{[%clk 00:18:50]} {[%emt 00:00:38]} Ne2 {[%clk 00:13:47]} {[%emt 00:03:13]} 83.
Rg4+ {[%clk 00:18:45]} {[%emt 00:00:36]} Nd4 {[%clk 00:12:01]} {[%emt
00:02:16]} 84. Kxa4 {[%clk 00:18:09]} {[%emt 00:01:06]} 1/2-1/2